fUSD/lending_fUSD_20250606
["ID","MTS","AMOUNT","RATE_DAILY","PERIOD"]
[364681568,1749197485563,-1526.25,0.00030657,2]
[364681569,1749197485577,-894.72,0.00030657,7]
[364681570,1749197485591,-480.0,0.00030657,7]
[364681571,1749197485604,-480.0,0.00030657,7]
[364681572,1749197485618,-480.0,0.00030657,7]
[364681573,1749197485631,-1071.48,0.00030657,7]
[364681574,1749197485645,-1415.9,0.00030657,7]
[364681575,1749197485659,-151.0,0.00030657,7]
[364681576,1749197485674,-480.0,0.00030657,7]
[364681577,1749197485687,-10675.65,0.00030657,7]
[364681578,1749197485700,-480.0,0.00030657,7]
[364681579,1749197485715,-6223.16,0.00030657,7]
[364681580,1749197485728,-954.54,0.00030657,7]
[364681581,1749197485744,-151.0,0.00030657,7]
[364681582,1749197485757,-480.0,0.00030657,7]
[364681583,1749197485770,-1264.89,0.00030657,7]
[364681584,1749197485783,-203.528443,0.00030657,7]
[364681585,1749197485797,-892.65,0.00030657,7]
[364681586,1749197485810,-229.42916,0.00030657,7]
[364681587,1749197485824,-480.0,0.00030657,7]
[364681588,1749197485837,-1334.57,0.00030657,7]
[364681589,1749197485851,-5244.54,0.00030657,7]
[364681590,1749197485865,-1745.74,0.00030657,7]
[364681591,1749197485879,-690.02,0.00030657,7]
[364681592,1749197485893,-229.42916,0.00030657,7]
[364681593,1749197485907,-367.04837545,0.00030657,7]
[364681594,1749197485921,-5331.78,0.00030657,7]
[364681595,1749197485935,-480.0,0.00030657,7]
[364681596,1749197485948,-460.0,0.00030657,7]
[364681597,1749197485964,-577.1,0.00030657,7]
[364681598,1749197485980,-1846.69,0.00030657,7]
[364681599,1749197485994,-460.0,0.00030657,7]
[364681600,1749197486008,-151.0,0.00030657,7]
[364681601,1749197486023,-480.0,0.00030657,7]
[364681602,1749197486037,-417.096075,0.00030657,7]
[364681603,1749197486051,-480.0,0.00030657,7]
[364681604,1749197486065,-480.0,0.00030657,7]
[364681605,1749197486079,-1324.34,0.00030657,7]
[364681606,1749197486357,-480.0,0.00030657,7]
[364681607,1749197486378,-480.0,0.00030657,7]
[364681608,1749197486388,-1485.03,0.00030657,7]
[364681609,1749197486398,-460.0,0.00030657,7]
[364681610,1749197486407,-183.11684,0.00030657,7]
[364681611,1749197486417,-480.0,0.00030657,7]
[364681612,1749197486427,-854.68,0.00030657,7]
[364681613,1749197486437,-480.0,0.00030657,7]
[364681614,1749197486446,-480.0,0.00030657,7]
[364681615,1749197486456,-1593.16,0.00030657,7]
[364681616,1749197486465,-1410.64,0.00030657,7]
[364681617,1749197486476,-1207.83,0.00030657,7]
[364681618,1749197486485,-1613.92,0.00030657,7]
[364681619,1749197486495,-2043.06,0.00030657,7]
[364681620,1749197486504,-480.0,0.00030657,7]
[364681621,1749197486514,-480.0,0.00030657,7]
[364681622,1749197486523,-238.26929,0.00030657,7]
[364681623,1749197486533,-151.0,0.00030657,7]
[364681624,1749197486543,-480.0,0.00030657,7]
[364681625,1749197486552,-480.0,0.00030657,7]
[364681626,1749197486562,-480.0,0.00030657,7]
[364681627,1749197486572,-480.0,0.00030657,7]
[364681628,1749197486582,-1285.47,0.00030657,7]
[364681629,1749197486591,-2497.24,0.00030657,7]
[364681630,1749197486601,-238.26929,0.00030657,7]
[364681631,1749197486610,-460.00088065,0.00030657,7]
[364681632,1749197486619,-480.0,0.00030657,7]
[364681633,1749197486629,-722.221235,0.00030657,7]
[364681634,1749197486638,-1896.04,0.00030657,7]
[364681635,1749197486648,-732.66,0.00030657,7]
[364681636,1749197486657,-480.0,0.00030657,7]
[364681637,1749197486670,-480.0,0.00030657,7]
[364681638,1749197486680,-1631.58,0.00030657,7]
[364681639,1749197486689,-721.27,0.00030657,7]
[364681640,1749197486699,-1408.84,0.00030657,7]
[364681641,1749197486710,-480.0,0.00030657,7]
[364681642,1749197486719,-735.38,0.00030657,7]
[364681643,1749197486729,-1252.03,0.00030657,7]
[364681644,1749197486738,-749.27,0.00030657,7]
[364681645,1749197486749,-851.11,0.00030657,7]
[364681646,1749197486759,-480.0,0.00030657,7]
[364681647,1749197486769,-502.097597,0.00030657,7]
[364681648,1749197486778,-261.289873,0.00030657,7]
[364681649,1749197486788,-4575.79,0.00030657,7]
[364681650,1749197486798,-1393.37,0.00030657,7]
[364681651,1749197486807,-1003.28,0.00030657,7]
[364681652,1749197486816,-2684.8,0.00030657,7]
[364681653,1749197486826,-502.097597,0.00030657,7]
[364681654,1749197486836,-480.0,0.00030657,7]
[364681655,1749197486845,-1115.23,0.00030657,7]
[364681656,1749197486854,-480.0,0.00030657,7]
[364681657,1749197486863,-480.0,0.00030657,7]
[364681658,1749197486873,-834.567432,0.00030657,7]
[364681659,1749197486882,-480.0,0.00030657,7]
[364681660,1749197486892,-5263.21,0.00030657,7]
[364681661,1749197486901,-18302.03,0.00030657,7]
[364681662,1749197486913,-1151.55,0.00030657,7]
[364681663,1749197486922,-2507.72,0.00030657,7]
[364681664,1749197486931,-151.0,0.00030657,7]
[364681665,1749197486940,-994.87,0.00030657,7]
[364681666,1749197486950,-496.19,0.00030657,7]
[364681667,1749197486959,-480.0,0.00030657,7]
[364681668,1749197486970,-953.26,0.00030657,7]
[364681669,1749197486980,-480.0,0.00030657,7]
[364681670,1749197486989,-353.255473,0.00030657,7]
[364681671,1749197486999,-480.0,0.00030657,7]
[364681672,1749197487009,-1018.89,0.00030657,7]
[364681673,1749197487019,-522.75,0.00030657,7]
[364681674,1749197487028,-480.0,0.00030657,7]
[364681675,1749197487038,-353.255473,0.00030657,7]
[364681676,1749197487047,-241.4215504,0.00030657,7]
[364681677,1749197487057,-1145.19,0.00030657,7]
[364681678,1749197487066,-480.0,0.00030657,7]
[364681679,1749197487076,-575.03944,0.00030657,7]
[364681680,1749197487086,-480.0,0.00030657,7]
[364681681,1749197487095,-159.604154,0.00030657,7]
[364681682,1749197487104,-500.0,0.00030657,7]
[364681683,1749197487114,-586.88,0.00030657,7]
[364681684,1749197487124,-500.0,0.00030657,7]
[364681685,1749197487133,-599.66,0.00030657,7]
[364681686,1749197487144,-480.0,0.00030657,7]
[364681687,1749197487154,-823.56,0.00030657,7]
[364681688,1749197487163,-1464.0,0.00030657,7]
[364681689,1749197487172,-159.604154,0.00030657,7]
[364681690,1749197487182,-642.87,0.00030657,2]
[364681691,1749197487191,-894.81,0.00030657,7]
[364681692,1749197487201,-1357.61,0.00030657,7]
[364681693,1749197487210,-480.0,0.00030657,7]
[364681694,1749197487220,-6519.68,0.00030657,7]
[364681695,1749197487229,-560.12,0.00030657,7]
[364681696,1749197487238,-601.8279368,0.00030657,7]
[364681697,1749197487248,-283.505928,0.00030657,7]
[364681698,1749197487258,-2372.89,0.00030657,7]
[364681699,1749197487268,-894.02,0.00030657,7]
[364681700,1749197487277,-558.51025321,0.00030657,7]
[364681701,1749197487287,-754.694887,0.00030657,7]
[364681702,1749197487301,-480.0,0.00030657,7]
[364681703,1749197487310,-480.0,0.00030657,7]
[364681704,1749197487320,-955.94,0.00030657,7]
[364681705,1749197487330,-480.0,0.00030657,2]
[364681706,1749197487340,-480.0,0.00030657,7]
[364681707,1749197487350,-1367.81,0.00030657,7]
[364681708,1749197487360,-1302.71,0.00030657,7]
[364681709,1749197487370,-981.45,0.00030657,7]
[364681710,1749197487379,-665.71,0.00030657,7]
[364681711,1749197487389,-480.0,0.00030657,7]
[364681712,1749197487398,-23916.37,0.00030657,7]
[364681713,1749197487408,-500.0,0.00030657,7]
[364681714,1749197487417,-150.0,0.00030657,2]
[364681715,1749197487426,-548.0,0.00030657,7]
[364681716,1749197487435,-867.3,0.00030657,7]
[364681717,1749197487444,-914.480056,0.00030657,7]
[364681718,1749197487454,-480.0,0.00030657,7]
[364681719,1749197487463,-502.03,0.00030657,7]
[364681720,1749197487473,-535.31,0.00030657,7]
[364681721,1749197487482,-480.0,0.00030657,7]
[364681722,1749197487491,-480.0,0.00030657,7]
[364681723,1749197487501,-805.19,0.00030657,7]
[364681724,1749197487510,-150.0,0.0003066,7]
[364681725,1749197487519,-303.34,0.00030665,2]
[364681726,1749197487528,-300.04,0.00030665,2]
[364681727,1749197487537,-249.59327405,0.00030669,7]
[364681728,1749197487547,-319.28703344,0.00030669,7]
[364681729,1749197487557,-500.0,0.00030669,2]
[364681730,1749197487566,-500.0,0.00030669,2]
[364681731,1749197487575,-500.0,0.00030669,2]
[364681732,1749197487584,-500.0,0.00030669,2]
[364681733,1749197487594,-500.0,0.00030669,2]
[364681734,1749197487603,-500.0,0.00030669,2]
[364681735,1749197487612,-500.0,0.00030669,2]
[364681736,1749197487621,-500.0,0.00030669,2]
[364681737,1749197487630,-500.0,0.00030669,2]
[364681738,1749197487639,-500.0,0.00030669,2]
[364681739,1749197487647,-500.0,0.00030669,2]
[364681740,1749197487657,-524.0,0.00030669,2]
[364681741,1749197487667,-500.0,0.00030669,2]
[364681742,1749197487678,-500.0,0.00030669,2]
[364681743,1749197487687,-500.0,0.00030669,2]
[364681744,1749197487696,-510.0,0.00030669,2]
[364681745,1749197487705,-500.0,0.00030669,2]
[364681746,1749197487717,-508.0,0.00030669,2]
[364681747,1749197487726,-500.0,0.00030669,2]
[364681748,1749197487736,-500.0,0.00030669,2]
[364681749,1749197487746,-500.0,0.00030669,2]
[364681750,1749197487756,-500.0,0.00030669,2]
[364681751,1749197487765,-500.0,0.00030669,2]
[364681752,1749197487774,-500.0,0.00030669,2]
[364681753,1749197487784,-500.0,0.00030669,2]
[364681754,1749197487794,-500.0,0.00030669,2]
[364681755,1749197487803,-500.0,0.00030669,2]
[364681756,1749197487812,-500.0,0.00030669,2]
[364681757,1749197487821,-500.0,0.00030669,2]
[364681758,1749197487830,-500.0,0.00030669,2]
[364681759,1749197487840,-500.0,0.00030669,2]
[364681760,1749197487850,-561.0,0.00030669,2]
[364681761,1749197487859,-500.0,0.00030669,2]
[364681762,1749197487868,-500.0,0.00030669,2]
[364681763,1749197487878,-500.0,0.00030669,2]
[364681764,1749197487887,-500.0,0.00030669,2]
[364681765,1749197487897,-500.0,0.00030669,2]
[364681766,1749197487907,-500.0,0.00030669,2]
[364681767,1749197487916,-500.0,0.00030669,2]
[364681768,1749197487925,-500.0,0.00030669,2]
[364681769,1749197487935,-500.0,0.00030669,2]
[364681770,1749197487944,-500.0,0.00030669,2]
[364681771,1749197487953,-500.0,0.00030669,2]
[364681772,1749197487963,-500.0,0.00030669,2]
[364681773,1749197487973,-500.0,0.00030669,2]
[364681774,1749197487983,-500.0,0.00030669,2]
[364681775,1749197487992,-500.0,0.00030669,2]
[364681776,1749197488001,-500.0,0.00030669,2]
[364681777,1749197488011,-500.0,0.00030669,2]
[364681778,1749197488020,-500.0,0.00030669,2]
[364681779,1749197488030,-500.0,0.00030669,2]
[364681780,1749197488039,-500.0,0.00030669,2]
[364681781,1749197488048,-500.0,0.00030669,2]
[364681782,1749197488058,-500.0,0.00030669,2]
[364681783,1749197488067,-500.0,0.00030669,2]
[364681784,1749197488077,-500.0,0.00030669,2]
[364681785,1749197488086,-500.0,0.00030669,2]
[364681786,1749197488096,-500.0,0.00030669,2]
[364681787,1749197488105,-500.0,0.00030669,2]
[364681788,1749197488114,-500.0,0.00030669,2]
[364681789,1749197488123,-500.0,0.00030669,2]
[364681790,1749197488133,-500.0,0.00030669,2]
[364681791,1749197488143,-500.0,0.00030669,2]
[364681792,1749197488152,-500.0,0.00030669,2]
[364681793,1749197488162,-500.0,0.00030669,2]
[364681794,1749197488171,-500.0,0.00030669,2]
[364681795,1749197488180,-571.0,0.00030669,2]
[364681796,1749197488190,-400.0,0.0003067,2]
[364681797,1749197488200,-150.0,0.00030676,7]
[364681798,1749197488209,-2976.0,0.00030678,44]
[364681799,1749197488219,-150.0,0.00030678,7]
[364681800,1749197488229,-150.0,0.0003068,7]
[364681801,1749197488238,-150.0,0.00030682,7]
[364681802,1749197488248,-500.0,0.00030684,3]
[364681803,1749197488257,-500.0,0.00030684,2]
[364681804,1749197488267,-500.0,0.00030684,7]
[364681805,1749197488276,-500.0,0.00030684,7]
[364681806,1749197488285,-150.0,0.00030684,7]
[364681807,1749197488296,-453.0,0.00030684,2]
[364681808,1749197488305,-2173.0,0.00030684,7]
[364681809,1749197488315,-150.0,0.00030684,7]
[364681810,1749197488324,-500.0,0.00030684,7]
[364681811,1749197488334,-150.0,0.00030684,7]
[364681812,1749197488343,-150.0,0.00030684,7]
[364681813,1749197488352,-150.0,0.00030684,7]
[364681814,1749197488362,-150.0,0.00030684,7]
[364681815,1749197488372,-150.0,0.00030684,7]
[364681816,1749197488382,-500.0,0.00030684,7]
[364681817,1749197488391,-500.0,0.00030684,7]
[364681818,1749197488400,-500.0,0.00030684,7]
[364681819,1749197488410,-500.0,0.00030684,7]
[364681820,1749197488419,-500.0,0.00030684,7]
[364681821,1749197488429,-500.0,0.00030684,7]
[364681822,1749197488439,-500.0,0.00030684,7]
[364681823,1749197488448,-500.0,0.00030684,7]
[364681824,1749197488457,-500.0,0.00030684,7]
[364681825,1749197488466,-500.0,0.00030684,7]
[364681826,1749197488476,-1464.0,0.00030684,7]
[364681827,1749197488485,-500.0,0.00030684,7]
[364681828,1749197488495,-548.0,0.00030684,7]
[364681829,1749197488504,-249.59327405,0.00030703,7]
[364681830,1749197488513,-319.28703344,0.00030703,7]
[364681831,1749197488523,-500.0,0.00030712,2]
[364681832,1749197488532,-500.0,0.00030712,7]
[364681833,1749197488541,-500.0,0.00030712,7]
[364681834,1749197488550,-150.0,0.00030712,7]
[364681835,1749197488559,-453.0,0.00030712,2]
[364681836,1749197488569,-2173.0,0.00030712,7]
[364681837,1749197488578,-150.0,0.00030712,7]
[364681838,1749197488587,-500.0,0.00030712,7]
[364681839,1749197488597,-150.0,0.00030712,7]
[364681840,1749197488607,-230.68503339,0.00030712,7]
[364681841,1749197488616,-150.0,0.00030712,7]
[364681842,1749197488626,-150.0,0.00030712,7]
[364681843,1749197488636,-150.0,0.00030712,7]
[364681844,1749197488646,-500.0,0.00030712,7]
[364681845,1749197488655,-500.0,0.00030712,7]
[364681846,1749197488667,-300.6854111,0.00030712,7]
[364681847,1749197488679,-500.0,0.00030712,7]
[364681848,1749197488688,-396.43125565,0.00030712,7]
[364681849,1749197488698,-203.7544645,0.00030712,7]
[364681850,1749197488707,-369.45071894,0.00030712,7]
[364681851,1749197488718,-500.0,0.00030712,7]
[364681852,1749197488728,-500.0,0.00030712,7]
[364681853,1749197488737,-184.426074,0.00030712,7]
[364681854,1749197488749,-1464.0,0.00030712,7]
[364681855,1749197488759,-500.0,0.00030712,7]
[364681856,1749197488768,-129.66376746,0.00030712,7]
[364681857,1749197489358,-557.19299999,0.00030164,7]
[364681858,1749197490892,-300.0,0.00026363,2]
[364681859,1749197490902,-151.0,0.00030137,2]
[364681860,1749197490911,-87.02854365,0.00030164,7]
[364681863,1749197583510,160.47,0.00013699,2]
[364681864,1749197747128,1000.94950401,0.00035616,120]
[364681866,1749198039182,506.81,0.00035616,120]
[364681884,1749198254292,50000.0,0.00035616,120]
[364681885,1749198309738,830.74666274,0.0002,2]
[364681886,1749198309762,2853.73888758,0.0002,2]
[364681887,1749198309784,2853.73888758,0.0002,2]
[364681888,1749198309806,2853.73888758,0.0002,2]
[364681889,1749198309827,2853.73888758,0.0002,2]
[364681890,1749198309849,2853.73888758,0.0002,2]
[364681891,1749198309873,2853.73888758,0.0002,2]
[364681892,1749198309894,2853.73888758,0.0002,2]
[364681893,1749198309926,86458.50466267,0.0002,2]
[364681894,1749198329752,-182.4,0.00030137,80]
[364681895,1749198330274,-162.87185966,0.000324,60]
[364681896,1749198330303,-162.87185966,0.000324,60]
[364681897,1749198330335,-162.87185966,0.000324,60]
[364681898,1749198330364,-162.87185966,0.000324,60]
[364681899,1749198330394,-162.87185966,0.000324,60]
[364681900,1749198330423,-162.87185966,0.000324,60]
[364681901,1749198330632,-500.0,0.0003406,60]
[364681902,1749198330662,-500.0,0.0003406,60]
[364681903,1749198330701,-3711.3643138,0.00035,90]
[364681904,1749198330733,-500.0,0.00035156,60]
[364681905,1749198330761,-623.1792551,0.00035156,60]
[364681906,1749198330792,-500.0,0.00035342,90]
[364681907,1749198330822,-500.0,0.00035342,90]
[364681908,1749198330851,-500.0,0.00035342,90]
[364681909,1749198330880,-500.0,0.00035342,90]
[364681910,1749198330911,-500.0,0.00035342,90]
[364681911,1749198330943,-500.0,0.00035342,90]
[364681912,1749198330976,-500.0,0.00035342,90]
[364681913,1749198331006,-500.0,0.00035342,90]
[364681914,1749198331038,-632.67934074,0.00035342,90]
[364681915,1749198331091,-1010.0,0.00035618,120]
[364681916,1749198331120,-150.0,0.000357,120]
[364681917,1749198331150,-347.80740911,0.00036,120]
[364681918,1749198331179,-74525.56181707,0.00036,60]
[364681919,1749198331207,-874.20709215,0.00036,120]
[364681920,1749198331238,-2000.0,0.00036241,120]
[364681921,1749198331267,-500.0,0.00036252,60]
[364681922,1749198331301,-2000.0,0.00036866,120]
[364681923,1749198331329,-500.0,0.00036948,120]
[364681924,1749198331359,-500.0,0.00036957,120]
[364681925,1749198331390,-150.0,0.00037,120]
[364681926,1749198331421,-385.84,0.00037,120]
[364681927,1749198331450,-1323.86349104,0.00037,120]
[364681928,1749198331480,-500.0,0.00037115,120]
[364681929,1749198331513,-1033.81668468,0.000372,120]
[364681930,1749198331546,-1033.81668465,0.000372,120]
[364681931,1749198331577,-1033.81668465,0.000372,120]
[364681932,1749198331607,-1033.81668465,0.000372,120]
[364681933,1749198331644,-1033.81668465,0.000372,120]
[364681934,1749198331680,-155.23483029,0.00037304,120]
[364681935,1749198331711,-500.0,0.00037348,60]
[364681936,1749198331741,-2000.0,0.00037492,120]
[364681937,1749198331771,-895.17565834,0.000375,120]
[364681938,1749198331802,-2993.44,0.000376,120]
[364681939,1749198331833,-1333.0,0.00037753,120]
[364681940,1749198331865,-150.0,0.00037812,120]
[364681941,1749198332221,-3180.0606288,0.00038,120]
[364681942,1749198332250,-1500.0,0.00038,120]
[364681943,1749198332279,-2000.0,0.00038117,120]
[364681944,1749198332309,-500.0,0.00038282,120]
[364681945,1749198332339,-500.0,0.00038298,120]
[364681946,1749198332371,-347.66402275,0.00038356,120]
[364681947,1749198332404,-2000.0,0.00038356,120]
[364681948,1749198332433,-2000.0,0.00038356,120]
[364681949,1749198332463,-2000.0,0.00038356,120]
[364681950,1749198332493,-2000.0,0.00038356,120]
[364681951,1749198332521,-2000.0,0.00038356,120]
[364681952,1749198332550,-2000.0,0.00038356,120]
[364681953,1749198332580,-2000.0,0.00038356,120]
[364681954,1749198332608,-2000.0,0.00038356,120]
[364681955,1749198332636,-2000.0,0.00038356,120]
[364681956,1749198332664,-2000.0,0.00038356,120]
[364681957,1749198332692,-2000.0,0.00038356,120]
[364681958,1749198332719,-2000.0,0.00038356,120]
[364681959,1749198332748,-2000.0,0.00038356,120]
[364681960,1749198332776,-2000.0,0.00038356,120]
[364681961,1749198332804,-2000.0,0.00038356,120]
[364681962,1749198332832,-2000.0,0.00038356,120]
[364681963,1749198332860,-2000.0,0.00038356,120]
[364681964,1749198332888,-2000.0,0.00038356,120]
[364681965,1749198332916,-2000.0,0.00038356,120]
[364681966,1749198332942,-2000.0,0.00038356,120]
[364681967,1749198332974,-2000.0,0.00038356,120]
[364681968,1749198333002,-2000.0,0.00038356,120]
[364681969,1749198333030,-2000.0,0.00038356,120]
[364681970,1749198333059,-2000.0,0.00038356,120]
[364681971,1749198333088,-2000.0,0.00038356,120]
[364681972,1749198333117,-2000.0,0.00038356,120]
[364681973,1749198333148,-2000.0,0.00038356,120]
[364681974,1749198333178,-2000.0,0.00038356,120]
[364681975,1749198333208,-2000.0,0.00038356,120]
[364681976,1749198333240,-2000.0,0.00038356,120]
[364681977,1749198333271,-2000.0,0.00038356,120]
[364681978,1749198333301,-2000.0,0.00038356,120]
[364681979,1749198333332,-2000.0,0.00038356,120]
[364681980,1749198333363,-2000.0,0.00038356,120]
[364681981,1749198333394,-2000.0,0.00038356,120]
[364681982,1749198333425,-2000.0,0.00038356,120]
[364681983,1749198333455,-2000.0,0.00038356,120]
[364681984,1749198333487,-733.950881,0.00038356,120]
[364681985,1749198333518,-500.0,0.00038444,60]
[364681986,1749198333548,-500.0,0.00038615,120]
[364681987,1749198333579,-2000.0,0.00038743,120]
[364681988,1749198333610,-503.90583462,0.000388,120]
[364681989,1749198333639,-150.0,0.00038833,120]
[364681990,1749198333669,-182.87005665,0.00038865,60]
[364681991,1749198333701,-350.0,0.00038865,60]
[364681992,1749198333731,-27282.78169349,0.0003888,120]
[364681993,1749198333763,-150.0,0.00038924,120]
[364681994,1749198333796,-3300.0,0.00039,60]
[364681995,1749198333825,-13007.0,0.00039,120]
[364681996,1749198333854,-634.51500475,0.00039,120]
[364681997,1749198333884,-150.0,0.00039073,120]
[364681998,1749198333914,-8868.060606,0.00039148,120]
[364681999,1749198333943,-155.01174151,0.00039169,120]
[364682000,1749198333976,-150.0,0.00039171,120]
[364682001,1749198334007,-2000.0,0.00039368,120]
[364682002,1749198334038,-150.0,0.00039413,120]
[364682003,1749198334069,-500.0,0.0003954,60]
[364682004,1749198334117,-5000.0,0.000396,120]
[364682005,1749198334147,-500.0,0.00039615,120]
[364682006,1749198334177,-150.0,0.00039625,120]
[364682007,1749198334205,-500.0,0.0003964,120]
[364682008,1749198334235,-5001.60056774,0.000397,120]
[364682009,1749198334265,-201.0,0.00039726,120]
[364682010,1749198334300,-4846.9519045,0.000398,120]
[364682011,1749198334330,-1253.14398754,0.000399,120]
[364682012,1749198334360,-2000.0,0.00039994,120]
[364682013,1749198334392,-531.65190099,0.0004,60]
[364682014,1749198334425,-3000.0,0.0004,90]
[364682015,1749198334456,-200218.31643725,0.0004,120]
[364682016,1749198334488,-2000.0,0.0004,120]
[364682017,1749198334519,-204.7,0.0004,120]
[364682018,1749198334550,-3537.05,0.0004,120]
[364682019,1749198334581,-1500.0,0.0004,120]
[364682020,1749198334611,-192.50748833,0.0004,120]
[364682021,1749198334639,-2516.25806531,0.0004,120]
[364682022,1749198334668,-198.66676502,0.0004,120]
[364682023,1749198334697,-4212.25323,0.0004,120]
[364682024,1749198334727,-1500.0,0.0004,120]
[364682025,1749198334755,-1000.0,0.0004,120]
[364682026,1749198334783,-500.0,0.0004,120]
[364682027,1749198334811,-1000.0,0.0004,120]
[364682028,1749198334839,-292.0,0.0004,120]
[364682029,1749198334868,-3688.0,0.0004,120]
[364682030,1749198334898,-10102.93078496,0.0004,120]
[364682031,1749198334926,-5224.0,0.0004,120]
[364682032,1749198334955,-900.75155674,0.0004,100]
[364682033,1749198334990,-2000.0,0.0004,120]
[364682034,1749198335203,-500.0,0.00040115,120]
[364682035,1749198335233,-350.0,0.00040235,60]
[364682036,1749198335262,-185.97513065,0.000405,120]
[364682037,1749198335291,-2000.0,0.00040619,120]
[364682038,1749198335320,-500.0,0.00040636,60]
[364682039,1749198335350,-4027.0,0.000407,117]
[364682040,1749198335379,-3253.26392417,0.000408,120]
[364682041,1749198335409,-500.0,0.00040948,120]
[364682042,1749198335438,-500.0,0.00040982,120]
[364682043,1749198335468,-254.50912277,0.00040988,120]
[364682044,1749198335499,-208.48763691,0.00041,120]
[364682045,1749198335528,-2000.0,0.00041,120]
[364682046,1749198335556,-13007.0,0.00041,120]
[364682047,1749198335585,-5086.5174697,0.00041,120]
[364682048,1749198335614,-600.0,0.00041,120]
[364682049,1749198335642,-10000.0,0.00041,120]
[364682050,1749198335670,-150.0,0.00041,120]
[364682051,1749198335698,-188.9,0.00041,120]
[364682052,1749198335726,-175.0,0.00041,90]
[364682053,1749198335756,-151.0,0.000411,120]
[364682054,1749198335786,-741.30313895,0.000411,120]
[364682055,1749198335816,-741.30313895,0.000411,120]
[364682056,1749198335844,-741.30313895,0.000411,120]
[364682057,1749198335872,-741.30313895,0.000411,120]
[364682058,1749198335902,-741.30313895,0.000411,120]
[364682059,1749198335931,-741.30313895,0.000411,120]
[364682060,1749198335961,-741.30313895,0.000411,120]
[364682061,1749198335992,-741.30313895,0.000411,120]
[364682062,1749198336023,-741.30313895,0.000411,120]
[364682063,1749198336053,-741.30313895,0.000411,120]
[364682064,1749198336081,-741.30313895,0.000411,120]
[364682065,1749198336110,-741.30313895,0.000411,120]
[364682066,1749198336141,-741.30313895,0.000411,120]
[364682067,1749198336170,-741.30313895,0.000411,120]
[364682068,1749198336200,-741.30313895,0.000411,120]
[364682069,1749198336231,-741.30313895,0.000411,120]
[364682070,1749198336262,-741.30313895,0.000411,120]
[364682071,1749198336292,-741.30313895,0.000411,120]
[364682072,1749198336323,-741.30313895,0.000411,120]
[364682073,1749198336355,-741.3,0.000411,120]
[364682074,1749198336387,-1729.70732422,0.000411,120]
[364682075,1749198336418,-1729.70732422,0.000411,120]
[364682076,1749198336450,-1729.70732422,0.000411,120]
[364682077,1749198336481,-1729.70732422,0.000411,120]
[364682078,1749198336511,-1729.70732422,0.000411,120]
[364682079,1749198336542,-1729.70732422,0.000411,120]
[364682080,1749198336573,-1729.70732422,0.000411,120]
[364682081,1749198336604,-1729.70732422,0.000411,120]
[364682082,1749198336635,-1729.70732422,0.000411,120]
[364682083,1749198336663,-1729.70732422,0.000411,120]
[364682084,1749198336692,-1729.70732422,0.000411,120]
[364682085,1749198336721,-1729.70732422,0.000411,120]
[364682086,1749198336751,-1729.70732422,0.000411,120]
[364682087,1749198336780,-1729.70732422,0.000411,120]